Cogmind - Beta 15 @@@ ROGUE MODE // 2025.05.25 @ 16:52:00 Player: HeartGrenade Result: Destroyed by H-55 Commando with Gauss Rifle Performance ------------- Evolutions (0) 0 Regions Visited (3) 600 Robots Destroyed (27) 135 Value Destroyed (782) 782 Prototype IDs (2) 40 Alien Tech Used (0) 0 Bonus (0) 0 TOTAL SCORE: 1557 Bonus ------- None Cogmind --------- Core Integrity 0/250 Matter 300/300 Energy 100/100 System Corruption 0% Temperature Cool (0) Movement Rolling (145) Ox3 Location -9/Recycling Parts ------- > --- POWER (1) -------- Subdweller Power Source > --- PROPULSION (2) --- Light Treads Compact Wheel > --- UTILITY (2) ------ High-capacity Storage Unit Core Shielding > --- WEAPON (2) ------- Subdweller Laser > --- INVENTORY (20) --- Aluminum Leg Aluminum Leg Wheel Compact Wheel Subdweller Monowheel Subdweller Monowheel Subdweller Monowheel Subdweller Monowheel Scrap Shield Power Bank Subdweller Laser Subdweller Laser Subdweller Beam Cannon Subdweller Beam Cannon Subdweller Machine Gun Heavy Battle Rifle Subdweller Shrapnel Launcher Peak State ------------ > --- POWER ------------ Subdweller Power Source > --- PROPULSION ------- Spiked Treads Subdweller Monowheel > --- UTILITY ---------- High-capacity Storage Unit Core Shielding > --- WEAPON ----------- Subdweller Beam Cannon Shotgun > --- INVENTORY -------- Subdweller Power Source Aluminum Leg Aluminum Leg Wheel Subdweller Monowheel Subdweller Monowheel Subdweller Laser Subdweller Laser Subdweller Beam Cannon Subdweller Machine Gun Heavy Battle Rifle [Rating: 14] Favorites ----------- Power Subdweller Power Source Engine Subdweller Power Source Propulsion Subdweller Monowheel Treads Light Treads Leg Aluminum Leg Wheel Subdweller Monowheel Utility High-capacity Storage Unit Storage High-capacity Storage Unit Protection Core Shielding Weapon Shotgun Energy Gun Subdweller Laser Energy Cannon Subdweller Beam Cannon Ballistic Gun Shotgun Build | -11 -10 -10 -9 ------- Run | Yrd Mat Sub Rec Slots Evolved . | . . . . Power . | . . . . Propulsion . | . . . . Utility . | . . . . Weapon . | . . . . Parts Attached 22 | 4 3 13 2 Power 2 | . . 2 . Engine 2 | . . 2 . Core . | . . . . Reactor . | . . . . Propulsion 9 | 2 . 5 2 Treads 4 | 2 . 1 1 Leg 2 | . . 2 . Wheel 3 | . . 2 1 Hover . | . . . . Flight . | . . . . Utility 3 | . 2 1 . Device . | . . . . Storage 1 | . . 1 . Processor . | . . . . Hackware . | . . . . Protection 2 | . 2 . . Artifact . | . . . . Weapon 8 | 2 1 5 . Energy Gun 2 | . . 2 . Energy Cannon 1 | . . 1 . Ballistic Gun 5 | 2 1 2 . Ballistic Cannon . | . . . . Launcher . | . . . . Special Weapon . | . . . . Impact Weapon . | . . . . Slashing Weapon . | . . . . Piercing Weapon . | . . . . Special Melee Weapon . | . . . . Unidentified Prototypes . | . . . . Parts Lost 9 | . . 8 1 Power 1 | . . 1 . Propulsion 3 | . . 3 . Utility 1 | . . 1 . Weapon 4 | . . 3 1 Highest Loss Streak 2 | . . 2 1 To Critical Strikes . | . . . . Average Backups 9 | 1 4 10 15 Power . | . . . . Propulsion 4 | 1 2 4 6 Utility . | . . . 2 Weapon 4 | . 1 4 7 Tool/Special . | . . . . Unused Backups 14 | . 1 . 13 Power . | . . . . Propulsion 5 | . . . 5 Utility 2 | . . . 2 Weapon 7 | . 1 . 6 Tool/Special . | . . . . Average Slot Usage (%) 85 | . 67 87 90 Engine 3 | . . 3 14 Treads 13 | . 28 11 7 Leg 4 | . . 4 12 Wheel 9 | . . 10 7 Storage 11 | . . 13 14 Protection 14 | . 10 14 14 Energy Gun 5 | . . 6 14 Energy Cannon 3 | . . 3 5 Ballistic Gun 17 | . 28 17 . Peak Build Rating 14 | 4 7 14 13 Average Rating 10 | 2 5 11 12 On Entrance 6 | . 4 7 13 Naked Turns . | . . . . Heaviest Build 58 | 4 7 58 58 Greatest Support 40 | 3 3 40 20 Greatest Overweight (x) 15 | 1 2 15 3 Average Overweight (x) 1 | . 1 1 2 Largest Inventory Capacity 20 | 5 5 20 20 Average Capacity 17 | 5 5 19 20 Most Carried 18 | 3 5 15 18 Average Carried 10 | 2 4 10 16 Final Capacity 20 | 5 5 20 20 Final Carried 18 | 3 5 15 18 Class Distribution -------------------- 84% | Mutant 15% | Scavenger-Mutant Dominant Class ---------------- Mutant | -10/Materials Mutant | -10/Subcaves Scavenger-Mutant | -9/Recycling Resources | -11 -10 -10 -9 ----------- Run | Yrd Mat Sub Rec Matter Collected 754 | 211 140 383 20 Remotely . | . . . . Salvage Created 910 | . 191 599 120 Parts 63 | . 16 38 9 Haulers Intercepted . | . . . . Recyclers Shooed . | . . . . Parts Field Recycled . | . . . . Retrieved Matter . | . . . . Parts Self-Destructed 13 | . . 13 . Prevented . | . . . . Kills | -11 -10 -10 -9 ------- Run | Yrd Mat Sub Rec Combat Hostiles Destroyed 25 | . 7 17 1 Guns 18 | . 7 10 1 Cannons 6 | . . 6 . Classes Destroyed 6 | . 2 3 1 Recycler 1 | . . . 1 Turret 1 | . . 1 . Swarmer 8 | . 3 5 . Grunt 4 | . 4 . . Sentry 2 | . . 1 1 Subdweller 11 | . . 11 . Best Kill Streak 4 | . 3 4 2 Combat Bots Only 4 | . 3 4 1 Max Kills in Single Turn 1 | . 1 1 1 Gunslinging . | . . . . Exploded . | . . . . Melee . | . . . . Uniques/NPCs Destroyed . | . . . . Combat | -11 -10 -10 -9 -------- Run | Yrd Mat Sub Rec Hostile Shots Fired 195 | . 26 164 5 Missed 65 | . 6 58 1 Hits 130 | . 20 106 4 Projectile 130 | . 20 106 4 Damage Taken 1751 | . 184 1501 66 Core 257 | . 9 231 17 Absorbed by Shields . | . . . . Redirected to Shielding 100 | . 12 84 4 Core Remaining (%) 100 | 100 . . . Volleys Fired 91 | . 13 74 4 Largest 2 | . 2 2 2 Hottest 140 | . 43 140 140 Shots Fired 157 | . 26 126 5 Gun 131 | . 26 101 4 Cannon 26 | . . 25 1 Launcher . | . . . . Special . | . . . . Kinetic 88 | . 26 62 . Thermal 69 | . . 64 5 Explosive . | . . . . Electromagnetic . | . . . . Robot Hit Streak 15 | . 15 14 11 Robot Miss Streak 4 | . 2 4 . Penetration Max . | . . . . Secondary Targets 2 | . 2 . . Max Gunslinging Chain 1 | . 1 . . Shots Hit Robots 110 | . 20 85 5 Core Hits 50 | . 11 36 3 Critical Kills 1 | . . 1 . Critical Parts Destroyed 1 | . 1 . . Critical Strikes 3 | . 1 2 . Meltdown 1 | . . 1 . Destroy 2 | . 1 1 . Melee Attacks . | . . . . Impact . | . . . . Slashing . | . . . . Piercing . | . . . . Sneak Attacks . | . . . . Combat Hostiles . | . . . . Follow-up Attacks . | . . . . Damage Inflicted 1989 | . 266 1621 102 Guns 1472 | . 266 1132 74 Cannons 517 | . . 489 28 Explosions . | . . . . Melee . | . . . . Ramming . | . . . . Kinetic 1151 | . 266 885 . Thermal 838 | . . 736 102 Explosive . | . . . . Electromagnetic . | . . . . Impact . | . . . . Slashing . | . . . . Piercing . | . . . . Highest Corruption . | . . . . Average Corruption . | . . . . Corruption Purged . | . . . . Corruption Blocked . | . . . . Overload Shots . | . . . . Overflow Damage 7 | . . 7 . Projectiles 7 | . . 7 . Explosions . | . . . . Melee . | . . . . Knockbacks . | . . . . Impact . | . . . . Kinetic . | . . . . Secondary . | . . . . Self-Inflicted Damage . | . . . . Shots . | . . . . Rammed . | . . . . Targets Rammed . | . . . . Kicked . | . . . . Crushed . | . . . . Highest Temperature 120 | . . 120 92 Average Temperature 31 | . . 26 53 Received Heat Transfer 477 | . 48 420 9 Siege Activations . | . . . . Martial Activations . | . . . . Shielding Activations . | . . . . Robots Disrupted . | . . . . Combat Hostiles . | . . . . Robots Corrupted . | . . . . Combat Hostiles . | . . . . Parts Fried . | . . . . Impact Corruptions . | . . . . Robots Melted 1 | . . 1 . Combat Hostiles 1 | . . 1 . Parts Melted 4 | . . 4 . Heat Transferred 1103 | . . 966 137 Parts Sabotaged . | . . . . Parts Stolen . | . . . . Parts Stripped . | . . . . Power Chain Reactions . | . . . . Alert | -11 -10 -10 -9 ------- Run | Yrd Mat Sub Rec Maximum Alert Level . | . . . . Low Security (%) 100 | 100 100 . 100 Level 1 . | . . . . Level 2 . | . . . . Level 3 . | . . . . Level 4 . | . . . . Level 5 . | . . . . High Security . | . . . . Max Security . | . . . . Peak Influence 101 | . 101 . 82 Initial 82 | . . . 82 Average 48 | . 49 . 56 Influence Increases 481 | . 211 245 25 Destroy 0b10 Robot/C 300 | . 140 140 20 Destroy 0b10 Robot/NC 5 | . . . 5 Destroy Leader 40 | . 40 . . Successful Hack 30 | . 30 . . Destroy Structure 1 | . 1 . . Lose Combat Pursuer 105 | . . 105 . Influence Decreases 454 | . 138 146 170 Entered New Map 126 | . . 36 90 Time Decay 308 | . 138 100 70 Lost Part 20 | . . 10 10 Squads Dispatched 4 | . 4 . . Investigation 3 | . 3 . . Extermination . | . . . . Reinforcement 1 | . 1 . . Assault . | . . . . Garrison . | . . . . Intercept . | . . . . Searches Triggered . | . . . . Construction Impeded . | . . . . Haulers Reinforced . | . . . . Active Scanning Responses . | . . . . Cargo Convoy Interrupts . | . . . . Stealth | -11 -10 -10 -9 --------- Run | Yrd Mat Sub Rec Distress Signals . | . . . . Communications Jammed . | . . . . Distress Signals . | . . . . Times Spotted 35 | . 9 23 3 Peak Tracking Total 5 | . 3 5 2 Tactical Retreats 4 | . . 4 . Traps | -11 -10 -10 -9 ------- Run | Yrd Mat Sub Rec Traps Triggered 3 | . 3 . . Indirectly . | . . . . Trap Hack Attempts . | . . . . Triggered . | . . . . Disarmed . | . . . . Reprogrammed . | . . . . Reused . | . . . . Traps Extracted . | . . . . Installed . | . . . . Triggered . | . . . . Machines | -11 -10 -10 -9 ---------- Run | Yrd Mat Sub Rec Machines Disabled 1 | . . 1 . Max in Single Turn 1 | . . 1 . Machines Repaired . | . . . . Machines Dismantled . | . . . . Machines Sabotaged . | . . . . Overloaded Fab Kills . | . . . . Hacking | -11 -10 -10 -9 --------- Run | Yrd Mat Sub Rec Machines Accessed 8 | . 6 1 1 Terminals 7 | . 6 . 1 Fabricators . | . . . . Repair Stations . | . . . . Recycling Units . | . . . . Scanalyzers . | . . . . Garrison Access . | . . . . Total Hacks 28 | . 20 5 3 Successful 18 | . 13 5 . Failed 9 | . 6 . 3 Catastrophic . | . . . . Database Lockouts 1 | . 1 . . Manual 18 | . 16 . 2 Terminals 23 | . 20 . 3 Fabricators . | . . . . Repair Stations . | . . . . Recycling Units . | . . . . Scanalyzers . | . . . . Garrison Access . | . . . . Terminal Hacks 10 | . 5 5 . Record 5 | . . 5 . Part Schematic 1 | . 1 . . Prototype ID Bank 1 | . 1 . . Maintenance Status 1 | . 1 . . Hauler Manifests 1 | . 1 . . Zone Layout 1 | . 1 . . Fabricator Hacks . | . . . . Repair Station Hacks . | . . . . Recycling Unit Hacks . | . . . . Scanalyzer . | . . . . Garrison Access Hacks . | . . . . Unauthorized Hacks 8 | . 8 . . Terminals 8 | . 8 . . Botnet 2 | . 2 . . Disrupt 1 | . 1 . . Skim 5 | . 5 . . Fabricators . | . . . . Repair Stations . | . . . . Recycling Units . | . . . . Scanalyzers . | . . . . Garrison Access . | . . . . Data Cores Recovered . | . . . . Used . | . . . . Hacking Detections 6 | . 5 . 1 Full Trace Events . | . . . . Feedback Events . | . . . . Feedback Blocked . | . . . . Robot Schematics Acquired . | . . . . Robots Built . | . . . . Authchips . | . . . . Time . | . . . . Total Robot Build Rating . | . . . . Part Schematics Acquired 1 | . 1 . . Parts Built . | . . . . Authchips . | . . . . Time . | . . . . Total Part Build Rating . | . . . . Parts Repaired . | . . . . Time . | . . . . Parts Recycled . | . . . . Recycled Matter . | . . . . Retrieved Matter . | . . . . Retrieved Components . | . . . . Parts Scanalyzed . | . . . . Part Schematics Acquired . | . . . . Parts Damaged . | . . . . Bothacking | -11 -10 -10 -9 ------------ Run | Yrd Mat Sub Rec Used RIF Installer . | . . . . Robots Hacked . | . . . . Non-combat . | . . . . Combat . | . . . . Robot Hacks Applied . | . . . . Relay Couplers Released . | . . . . Fabnet Peak Effective % . | . . . . Robots Rewired 1 | . . . 1 Allies Hacked . | . . . . Hacks Repelled . | . . . . Allies | -11 -10 -10 -9 -------- Run | Yrd Mat Sub Rec Total Allies 1 | . . . 1 Largest Group . | . . . . Highest-Rated Group . | . . . . Highest-Rated Ally . | . . . . Total Orders . | . . . . Ally Attacks . | . . . . Total Damage . | . . . . Kills . | . . . . Allies Corrupted . | . . . . Allies Melted . | . . . . Intel | -11 -10 -10 -9 ------- Run | Yrd Mat Sub Rec Active Infowar (turns) . | . . . . Robot Analysis Total . | . . . . Derelict Logs Recovered 1 | . . 1 . Drone Launches . | . . . . Drone Recoveries . | . . . . Exploration | -11 -10 -10 -9 ------------- Run | Yrd Mat Sub Rec Turns Passed 3413 | 35 339 2882 157 Spaces Moved 1433 | 30 270 1057 76 Core 393 | 30 270 93 . Treads 517 | . . 516 1 Legs 102 | . . 81 21 Wheels 421 | . . 367 54 Hover . | . . . . Flight . | . . . . Fastest Speed 50 | 50 100 130 145 Average Speed 211 | 88 103 244 179 Slowest Speed 800 | 100 150 800 320 Overloaded Moves . | . . . . Propulsion Burnouts . | . . . . Robots Hopped . | . . . . Potential Cave-ins . | . . . . Cave-ins Triggered . | . . . . Exploration Rate (%) 38 | 3 48 83 18 Regions Visited 3 Branch Regions 2 Pre-discovered Areas 1 | . . 1 . Known Exits Taken 1 | . . 1 . Unknown Exits Taken 2 | 1 1 . . Scrap Searched 2 | . . 2 . Spaces Dug . | . . . . Terrain Destroyed 7 | . . 7 . Melee . | . . . . Projectile 7 | . . 7 . AOE . | . . . . Terrain Rammed . | . . . . Walls Destroyed . | . . . . Machines Disabled . | . . . . Actions | -11 -10 -10 -9 --------- Run | Yrd Mat Sub Rec Total 1652 | 36 304 1220 92 Wait 68 | . 14 54 . Move 1430 | 29 269 1056 76 Hop . | . . . . Pick Up 24 | 3 3 17 1 Fast Attach 12 | 4 3 3 2 Attach 7 | . . 7 . Detach 2 | . . . 2 Swap 7 | . . 7 . Drop 4 | . 2 2 . Fire 91 | . 13 74 4 Melee . | . . . . Ram . | . . . . Kick . | . . . . Crush . | . . . . Escape Stasis . | . . . . Rewire 7 | . . . 7 Trap . | . . . . Miscellaneous . | . . . . Route ------- -11/Scrapyard -10/Materials (discovered 3 exits: [*Mat] / [*Min] / *Sub) -10/Subcaves (discovered 2 exits: [*Mat] / *Rec) -9/Recycling History --------- Turn | Location | Event 2 | -11/Scrapyard | Met Revision 17 14 | -11/Scrapyard | Discovered new exit (range 16) 36 | -11/Scrapyard | Entered Materials 64 | -10/Materials | Central database locked down 215 | -10/Materials | Discovered new exit (range 6) 248 | -10/Materials | Discovered new exit (range 9) 301 | -10/Materials | Build established: Mutant 325 | -10/Materials | Learned 4 Subcaves zone layouts 368 | -10/Materials | Discovered new exit (range 6) 375 | -10/Materials | Entered Subcaves 376 | -10/Subcaves | Identified exit to Recycling 399 | -10/Subcaves | A swath of the cavern ceiling suddenly collapsed 1043 | -10/Subcaves | Shifting Twisted Machinery released Spk. Treads 1208 | -10/Subcaves | Shifting Twisted Machinery released Sub. Power Source 1209 | -10/Subcaves | Shifting Twisted Machinery released Hvy. Battle Rifle 2123 | -10/Subcaves | Discovered new exit (range 16) 2385 | -10/Subcaves | Visited Clippyterm 2396 | -10/Subcaves | Learned Factory fabricator intel 2396 | -10/Subcaves | Learned 40 Factory zone layouts 2565 | -10/Subcaves | A Subdweller sparked back to life 2604 | -10/Subcaves | Core integrity fell below 50% 2612 | -10/Subcaves | Found Prototype Device 2886 | -10/Subcaves | Build established: Scavenger-Mutant 2927 | -10/Subcaves | Shifting Twisted Machinery released Battle Cannon 3020 | -10/Subcaves | Core integrity fell below 20% 3191 | -10/Subcaves | Shifting Twisted Machinery released Sub. Optics 3257 | -10/Subcaves | Entered Recycling 3414 | -9/Recycling | Destroyed by H-55 Commando with Gauss Rifle Last Messages --------------- LOCATION=RECYCLING GOAL=ESCAPE 03287_ Sub. Power Source shoots sparks and powers down. 03305_ Y-45 Defender springs to life. 03310_ Sub. Beam Cannon destroyed. 03312_ Y-45 Defender destroyed. 03317_ R-06 Scavenger collects Hvy. Assault Rifle. 03320_ Acquired Lgt. Treads. 03321_ R-06 Scavenger destroyed. 03323_ Acquired Com. Wheel. 03329_ Acquired 20 matter. 03370_ Connecting with Terminal... 03399_ I-25 Savior springs to life. 03399_ Attempting to rewire D-53 Grenadier. 03407_ Attempting to rewire Y-45 Defender. 03411_ Y-45 Defender rewired. 03413_ H-55 Commando springs to life. 03414_ Attempting to rewire H-55 Commando. Map ----- +----------------------------------------------------+ | | | | | ?????????????????????????????????????????????????? | | ?????????????????????????????????????????????????? | | ?????????????????????????????????????????????????? | | ?????????????????????????????????????????????????? | | ?????????????????????????????????????????????????? | | ?????????????????????????????????????????????????? | | ?????????????????????????????????????????????????? | | ?????????????????????????????????????????????????? | | ?????????????????????????????????????????????????? | | ?????????????????????????????????????????????????? | | ?????????????????????????????????????????????????? | | ?????????????????????????????????????????????????? | | ?????????????????????????????????????????????????? | | ?????????????????????????????????????????????????? | | ??#####??????????????????????????????????????????? | | ??#! !#??????????????????????????????????????????? | | ### !!########???????????????????????????????????? | | #????????######?????????????????????? | | * #????????#=k g#?????????????????????? | | *! ##########kig #?????????????????????? | | [%%[ + t h#?????????????????????? | | !## ######## ##### # i ]#?????????????????????? | | ####??????# #??????? # rth#?????????????????????? | | #?????????# #??????? # Y@r#?????????????????????? | | #?????????# #??????? #k p#?????????????????????? | | #####?????# #??????# #t]tg#?????????????????????? | | #?#####+######## +! #?????????????????????? | | #?# # #! d#?????????????????????? | | #?# # # #?????????????????????? | | #?# # +! t#?????????????????????? | | #?# """ """ # # r #?????????????????????? | | #?# """ """ # ###/#########??????????????? | | #?# """ """ # ????????? | | #?# + ????????? | | #?# """ """ # ????????? | | #?# " """ """ ######]]]###+##+####?????????? | | #?# T """ """ #?????]]]#???????????????????? | | "?# " #?????####???????????????????? | | Y"# #????????????????????????????? | | ""##############????????????????????????????? | | ###?????????????????????????????????????????? | | #???????????????????????????????????????????? | | #???????????????????????????????????????????? | | #???????????????????????????????????????????? | | ???????????????????????????????????????????? | | ]???????????????????????????????????????????? | | ]???????????????????????????????????????????? | | #???????????????????????????????????????????? | +----------------------------------------------------+ Best States ------------- Heat Dissipation 25 Energy Generation 15 Energy Capacity 200 Matter Stores 300 Matter Capacity 300 Sight Range 16 Terrain Scan Density 10 Core Shielding 20 Weapon Shielding 33 Evasion (%) 40 Recoil Reduction 2 Item Schematics ----------------- Hcp. Storage Unit | -10/Materials | Hacked Robot Schematics ------------------ None Fabricated ------------ Nothing Repaired ---------- Nothing Alien Tech Used ----------------- None Achievements -------------- None Challenges ------------ None Game ------ Seed MolecularTerrorGreatsword Manual? 0 Play Time 00:22:00 Cumulative 380.0 hours Start 2025.05.25 @ 16:26:32 End 2025.05.25 @ 16:52:00 Sessions 1 Manual Loads 0 Difficulty Rogue Special Mode None Game No. 167 Rogue 167 Adventurer 0 Explorer 0 Win Type - Total 19 Types 6/2/6/1/2/0/1/1/0/0 Lore% 69 Gallery% 74 Achievement% 73 Wizard Run 0 Options --------- Layout 2 ASCII 0 Keyboard 1 Movement Numpad Keybinds 0 Fullscreen 2 Font 24/Proggy Map View 50x44 Zoom Use 0% Tactical HUD 1 Map Filters NONE Filters NONE Steam 1 RUN: 028a0613-39c2-4d7d-8150-c13f2e7539e0